bitfinex/quotes_SOLUSD_20240814
["timestamp","ask_amount","ask_price","bid_price","bid_amount"]
[1723597649000,51.8658,145.65,145.61,17.1685]
[1723597649311,7.72580493,145.64,145.59,6.8681]
[1723597649815,51.99259,145.63,145.58,34.4836846]
[1723597650015,45.12549,145.65,145.59,6.8685]
[1723597650016,6.8663,145.64,145.59,6.8685]
[1723597650194,6.8668,145.63,145.59,6.8685]
[1723597650400,51.8668,145.63,145.58,41.3525846]
[1723597650594,31.81549,145.64,145.58,24.8660846]
[1723597650793,0.25098,145.62,145.58,24.8660846]
[1723597652119,51.99229,145.63,145.59,6.8685]
[1723597652320,51.8668,145.63,145.59,6.8685]
[1723597653515,45.0,145.63,145.59,6.8685]
[1723597654124,45.0,145.63,145.6,6.868]
[1723597654691,45.0,145.63,145.59,6.8684]
[1723597654920,51.8668,145.63,145.59,6.8684]
[1723597655121,0.85950493,145.62,145.59,6.8684]
[1723597655496,51.8668,145.63,145.59,6.8684]
[1723597655925,0.85950493,145.62,145.59,6.8684]
[1723597656294,45.0,145.63,145.59,6.8684]
[1723597656808,0.12549,145.62,145.58,24.8657846]
[1723597657127,31.69,145.64,145.58,17.9971846]
[1723597657321,31.69,145.66,145.61,6.8675]
[1723597657504,6.8661,145.65,145.6,24.0379]
[1723597658034,6.8662,145.64,145.6,24.0379]
[1723597658403,0.12549,145.64,145.6,24.0379]
[1723597658804,45.12549,145.64,145.6,24.0379]
[1723597659334,6.99179,145.64,145.6,24.0379]
[1723597660019,25.26494788,145.69,145.58,0.8248846]
[1723597660020,6.8645,145.68,145.64,6.8662]
[1723597660208,6.8649,145.67,145.63,6.8665]
[1723597661328,45.0,145.66,145.63,6.8665]
[1723597661904,22.2351,145.73,145.64,1.37335888]
[1723597662227,22.2351,145.73,145.62,15.4428]
[1723597662228,6.8624,145.72,145.68,6.8643]
[1723597664528,6.8624,145.72,145.67,6.8646]
[1723597665429,45.0,145.71,145.67,6.8646]
[1723597665728,51.863,145.71,145.67,6.8646]
[1723597667630,45.0,145.71,145.66,17.1626]
[1723597667819,0.25098,145.7,145.63,23.7383]
[1723597668010,45.25098,145.7,145.63,23.7383]
[1723597668334,45.12549,145.7,145.63,23.7383]
[1723597668537,51.98899,145.7,145.65,6.8654]
[1723597669620,6.8639,145.69,145.65,6.8654]
[1723597669822,6.8648,145.67,145.63,17.166]
[1723597670215,6.8644,145.68,145.63,24.0322]
[1723597670622,6.8658,145.65,145.59,6.4044]
[1723597670819,6.8654,145.66,145.61,6.8672]
[1723597671011,6.8654,145.66,145.61,6.8675]
[1723597671215,0.85950493,145.65,145.61,6.8675]
[1723597671626,7.72560493,145.65,145.6,24.0372]
[1723597671832,0.85950493,145.64,145.6,24.0372]
[1723597672845,51.8662,145.64,145.6,24.0372]
[1723597673155,6.99129,145.65,145.6,17.1694]
[1723597673307,6.99129,145.65,145.61,6.8674]
[1723597673912,6.8662,145.64,145.6,24.0374]
[1723597674137,6.8658,145.65,145.6,24.0374]
[1723597674318,45.0,145.64,145.6,24.0374]
[1723597674523,0.85950493,145.63,145.6,24.0374]
[1723597674719,51.8662,145.64,145.6,24.0374]
[1723597675043,45.0,145.64,145.61,6.8675]
[1723597675357,45.0,145.65,145.61,6.8675]
[1723597675641,45.12549,145.65,145.61,6.8675]
[1723597676135,51.99129,145.65,145.61,6.8675]
[1723597678040,6.99089,145.66,145.62,6.867]
[1723597678541,38.80588,145.67,145.62,6.867]
[1723597678848,51.8654,145.66,145.61,6.8672]
[1723597679855,6.99129,145.65,145.61,6.8672]
[1723597680323,51.8654,145.66,145.61,6.8672]
[1723597681446,51.8654,145.66,145.62,6.8671]
[1723597682143,7.11528,145.68,145.64,6.8661]
[1723597682351,45.0,145.67,145.64,6.8661]
[1723597682552,6.8643,145.68,145.64,6.8661]
[1723597682926,61.0885,145.69,145.65,6.8657]
[1723597683247,38.5539,145.69,145.64,24.0314]
[1723597683923,38.5539,145.69,145.65,6.8657]
[1723597683924,0.12549,145.68,145.65,6.8657]
[1723597684138,6.8635,145.7,145.65,6.8657]
[1723597684323,6.8635,145.7,145.66,6.8652]
[1723597684959,6.8635,145.7,145.65,6.8656]
[1723597685161,6.8641,145.69,145.65,6.8656]
[1723597685828,6.8635,145.7,145.65,6.8656]
[1723597686048,6.8635,145.7,145.66,6.8653]
[1723597687054,6.8635,145.7,145.65,6.8656]
[1723597687269,6.8639,145.69,145.65,6.8656]
[1723597687576,6.8634,145.7,145.66,6.8652]
[1723597687869,6.864,145.69,145.65,6.8656]
[1723597688656,6.8635,145.7,145.65,6.8656]
[1723597688961,0.85950493,145.69,145.65,6.8656]
[1723597689837,7.72360493,145.69,145.65,6.8656]
[1723597690258,6.8641,145.69,145.65,6.8656]
[1723597693147,6.8655,145.66,145.62,6.8671]
[1723597693355,6.8655,145.66,145.61,13.2366]
[1723597693654,0.12549,145.67,145.64,6.8662]
[1723597693862,19.67989,145.68,145.64,6.8662]
[1723597694045,19.5544,145.68,145.64,6.8662]
[1723597694833,6.8648,145.67,145.63,6.8667]
[1723597695443,6.8648,145.67,145.62,24.0343]
[1723597696152,6.8648,145.67,145.63,6.8666]
[1723597699762,6.8653,145.66,145.62,24.0344]
[1723597700940,6.8648,145.67,145.63,6.8666]
[1723597702268,12.69,145.7,145.64,18.53798138]
[1723597702438,45.0,145.69,145.64,17.1648]
[1723597704166,6.8651,145.67,145.62,6.867]
[1723597704370,6.8651,145.67,145.61,6.3691]
[1723597704371,6.8653,145.66,145.61,23.5376]
[1723597705142,6.8653,145.66,145.62,6.8668]
[1723597705386,6.8649,145.67,145.61,23.5376]
[1723597706878,6.8649,145.67,145.63,6.8667]
[1723597707063,6.8649,145.67,145.62,6.867]
[1723597707575,7.72480493,145.66,145.62,6.867]
[1723597708149,6.8649,145.67,145.63,6.8665]
[1723597708558,7.24097,145.68,145.64,6.8659]
[1723597708776,45.0,145.67,145.64,6.8659]
[1723597709459,51.8649,145.67,145.63,24.0324]
[1723597709784,0.85950493,145.66,145.63,17.1659]
[1723597709956,51.8649,145.67,145.63,24.0325]
[1723597710280,0.85950493,145.66,145.63,24.0325]
[1723597712857,51.8649,145.67,145.63,24.0325]
[1723597713182,45.0,145.67,145.63,24.0325]
[1723597713351,51.8645,145.68,145.64,6.866]
[1723597714753,6.8648,145.67,145.63,24.0325]
[1723597716187,45.0,145.68,145.63,17.1659]
[1723597716391,51.8644,145.68,145.64,6.866]
[1723597717464,6.8644,145.68,145.64,6.866]
[1723597718577,13.54950493,145.67,145.6,33.3361]
[1723597719157,6.8656,145.66,145.6,33.3361]
[1723597719371,0.85950493,145.65,145.6,33.3361]
[1723597719855,7.72520493,145.65,145.61,6.8673]
[1723597720169,0.85950493,145.64,145.61,6.8673]
[1723597720567,6.8654,145.66,145.62,6.867]
[1723597721367,19.68039,145.67,145.62,6.867]
[1723597721863,19.68039,145.67,145.63,6.8667]
[1723597722989,6.8654,145.66,145.62,6.867]
[1723597723285,19.68039,145.67,145.62,6.867]
[1723597724864,52.72480493,145.66,145.62,6.867]
[1723597725277,52.72480493,145.66,145.61,6.8675]
[1723597725760,6.8657,145.65,145.61,6.8675]
[1723597726089,51.8653,145.66,145.62,6.8671]
[1723597726289,45.0,145.66,145.62,6.8671]
[1723597726480,45.85950493,145.66,145.62,6.8671]
[1723597726792,52.72480493,145.66,145.62,6.8671]
[1723597728285,51.8653,145.66,145.62,6.8671]
[1723597728984,51.8653,145.66,145.61,6.8676]
[1723597729292,0.85950493,145.65,145.61,6.8676]
[1723597729478,51.8653,145.66,145.62,6.8668]
[1723597729784,45.0,145.66,145.62,6.8668]
[1723597730965,0.85950493,145.65,145.62,6.8668]
[1723597731583,51.8654,145.66,145.62,6.8668]
[1723597732083,45.0,145.66,145.62,6.8668]
[1723597732389,45.0,145.66,145.63,6.8666]
[1723597732564,45.0,145.66,145.62,6.867]
[1723597732962,45.00637116,145.73,145.63,1.373344]
[1723597733177,6.8634,145.7,145.64,1.37307551]
[1723597733391,6.8639,145.69,145.62,1.37307541]
[1723597733968,32.69,145.71,145.61,12.69]
[1723597734189,32.69,145.71,145.62,6.867]
[1723597734190,6.8653,145.66,145.62,6.867]
[1723597734384,6.8651,145.67,145.62,6.867]
[1723597734896,6.8651,145.67,145.62,6.8668]
[1723597735065,0.85950493,145.66,145.62,6.8668]
[1723597735402,0.85950493,145.66,145.63,6.8667]
[1723597735892,7.72480493,145.66,145.62,6.867]
[1723597736077,6.8657,145.65,145.61,24.036]
[1723597736389,12.69,145.63,145.57,16.1763]
[1723597736690,0.85950493,145.62,145.57,16.1763]
[1723597737099,0.85950493,145.62,145.53,22.375]
[1723597737267,6.8681,145.6,145.53,16.1553]
[1723597737466,0.85950493,145.59,145.53,16.1553]
[1723597737982,19.93407,145.61,145.57,6.8695]
[1723597738184,45.0,145.6,145.57,6.8695]
[1723597738580,19.68309,145.61,145.57,6.8695]
[1723597738975,0.85950493,145.6,145.57,6.8695]
[1723597739179,7.72770493,145.6,145.56,6.8698]
[1723597740071,7.72770493,145.6,145.55,24.046]
[1723597740273,6.8682,145.6,145.56,6.8698]
[1723597741768,19.68319,145.61,145.57,6.8695]
[1723597741973,12.69,145.61,145.55,17.1757]
[1723597742592,12.69,145.62,145.58,7.6935846]
[1723597742805,7.72670493,145.62,145.58,7.6935846]
[1723597742970,56.4035332,145.67,145.59,17.1706]
[1723597743170,19.5558,145.65,145.59,17.1706]
[1723597743385,20.0,145.66,145.61,6.8673]
[1723597743386,19.5554,145.66,145.61,6.8673]
[1723597743572,19.5554,145.66,145.61,6.8675]
[1723597743777,6.8658,145.65,145.6,6.8679]
[1723597744104,6.8663,145.64,145.6,6.8679]
[1723597745505,6.8658,145.65,145.6,6.8679]
[1723597746496,6.8658,145.65,145.6,8.24133884]
[1723597746698,6.8658,145.65,145.61,6.8676]
[1723597747500,19.5557,145.66,145.61,6.8676]
[1723597747802,0.85950493,145.65,145.61,6.8676]
[1723597748108,6.8648,145.67,145.61,17.1686]
[1723597748498,6.8648,145.67,145.62,6.867]
[1723597749195,12.81549,145.68,145.61,17.1686]
[1723597749196,6.8644,145.68,145.63,6.8662]
[1723597749579,6.8649,145.67,145.62,6.8671]
[1723597749888,6.8654,145.66,145.62,6.8671]
[1723597750288,6.8654,145.66,145.61,24.0361]
[1723597750591,12.69,145.64,145.58,0.8248846]
[1723597750771,45.85950493,145.63,145.58,0.8248846]
[1723597751593,6.8673,145.62,145.58,0.8248846]
[1723597751869,6.8673,145.62,145.58,7.6938846]
[1723597752074,19.5563,145.64,145.59,1.37369071]
[1723597752394,6.8663,145.64,145.59,6.8685]
[1723597752597,6.8663,145.64,145.59,24.0395]
[1723597752781,6.8668,145.63,145.59,24.0395]
[1723597754108,12.69,145.64,145.58,7.6937846]
[1723597754279,6.8673,145.62,145.58,0.8248846]
[1723597754601,6.8673,145.62,145.58,7.6937846]
[1723597755374,6.8673,145.62,145.58,0.8248846]
[1723597755578,6.8678,145.61,145.58,0.8248846]
[1723597758506,12.69,145.62,145.58,0.8248846]
[1723597758507,51.8682,145.6,145.58,0.8248846]
[1723597758906,6.8682,145.6,145.58,0.8248846]
[1723597759210,19.5582,145.6,145.58,0.8248846]
[1723597759398,0.85950493,145.59,145.58,0.8248846]
[1723597760713,7.72810493,145.59,145.58,0.8248846]
[1723597760912,52.72810493,145.59,145.58,0.8248846]
[1723597763287,51.8686,145.59,145.58,0.8248846]
[1723597763514,45.0,145.59,145.58,0.8248846]
[1723597764102,19.80848,145.62,145.58,0.8248846]
[1723597764298,52.11868,145.61,145.58,0.8248846]
[1723597765015,19.5583,145.6,145.58,0.8248846]
[1723597766507,6.8686,145.59,145.58,0.8248846]
[1723597766700,52.72810493,145.59,145.58,0.8248846]
[1723597769627,52.97908493,145.59,145.58,0.8248846]
[1723597769921,6.8714,145.53,145.52,4.0]
[1723597770294,19.561,145.54,145.52,4.0]
[1723597770694,6.8705,145.55,145.52,4.0]
[1723597771011,45.0,145.54,145.52,4.0]
[1723597771215,6.8697,145.57,145.53,6.8712]
[1723597771412,19.5597,145.57,145.53,6.8712]
[1723597771724,45.0,145.56,145.53,6.8712]
[1723597771919,45.0,145.56,145.52,10.8717]
[1723597772289,45.0,145.56,145.52,4.0]
[1723597772290,12.81549,145.55,145.52,4.0]
[1723597772495,0.85950493,145.54,145.52,4.0]
[1723597773223,12.81549,145.55,145.52,4.0]
[1723597774532,6.8709,145.54,145.52,4.0]
[1723597775032,7.73040493,145.54,145.52,4.0]
[1723597775335,12.69,145.55,145.52,4.0]
[1723597775637,19.5604,145.55,145.52,4.0]
[1723597775821,12.69,145.55,145.52,4.0]
[1723597776022,6.871,145.54,145.52,4.0]
[1723597776316,12.69,145.55,145.52,4.0]
[1723597777233,19.5606,145.55,145.52,4.0]
[1723597777737,6.8709,145.54,145.52,4.0]
[1723597777974,51.8709,145.54,145.52,4.0]
[1723597778619,6.8714,145.53,145.52,4.0]
[1723597778831,6.871,145.54,145.52,4.0]
[1723597779030,19.5606,145.55,145.52,4.0]
[1723597779340,52.73070493,145.54,145.52,4.0]
[1723597779510,51.8712,145.54,145.52,4.0]
[1723597780912,52.73070493,145.54,145.52,4.0]
[1723597781636,51.8712,145.54,145.52,4.0]
[1723597781859,19.5606,145.55,145.52,4.0]
[1723597782847,6.8709,145.54,145.52,4.0]
[1723597783161,19.5614,145.53,145.52,4.0]
[1723597784631,64.93787,145.53,145.52,4.0]
[1723597784840,65.06336,145.53,145.52,4.0]
[1723597785482,51.8714,145.53,145.52,4.0]
[1723597785657,6.87,145.56,145.52,4.0]
[1723597785952,6.99599,145.55,145.52,4.0]
[1723597786440,6.871,145.54,145.52,4.0]
[1723597786753,6.8714,145.53,145.52,4.0]
[1723597786922,7.12238,145.53,145.52,4.0]
[1723597787127,52.37336,145.53,145.52,4.0]
[1723597788541,0.12549,145.5,145.49,0.19254186]
[1723597788764,45.25098,145.5,145.49,0.19254186]
[1723597789128,45.25098,145.5,145.46,24.0611]
[1723597789952,45.25098,145.5,145.47,6.8739]
[1723597790136,0.25098,145.5,145.47,6.8739]
[1723597792560,12.81549,145.49,145.46,17.1865]
[1723597792983,45.0,145.48,145.46,24.0612]
[1723597793860,0.25098,145.5,145.47,6.8742]
[1723597794061,45.25098,145.5,145.47,6.8742]
[1723597794663,45.25098,145.5,145.46,24.0611]
[1723597794877,12.81549,145.49,145.46,17.1865]
[1723597795164,45.25098,145.48,145.46,17.1865]
[1723597797158,12.81549,145.47,145.43,0.8248846]
[1723597797360,12.69,145.47,145.43,0.8248846]
[1723597797664,0.12549,145.47,145.43,0.8248846]
[1723597798175,45.12549,145.48,145.43,0.8248846]
[1723597798553,45.12549,145.48,145.4,12.5148846]
[1723597798881,45.12549,145.48,145.45,6.875]
[1723597799268,0.25098,145.47,145.39,27.9685]
[1723597799480,7.00049,145.46,145.42,6.8765]
[1723597799980,0.12549,145.46,145.42,6.8765]
[1723597800272,12.69,145.49,145.45,6.8748]
[1723597800579,12.69,145.49,145.43,6.876]
[1723597801359,6.8738,145.48,145.44,17.1885]
[1723597801865,0.12549,145.48,145.44,24.0641]
[1723597802072,0.12549,145.48,145.45,6.8751]
[1723597802861,2.713957,145.52,145.46,6.8744]
[1723597803075,0.12549,145.5,145.46,6.8744]
[1723597803383,12.69,145.49,145.45,6.875]
[1723597803570,45.0,145.48,145.45,6.875]
[1723597804259,6.99839,145.5,145.46,6.8746]
[1723597804460,45.0,145.49,145.46,6.8746]
[1723597805391,51.8733,145.49,145.44,24.0637]
[1723597805690,57.69,145.49,145.44,17.1885]
[1723597805999,7.73330493,145.48,145.44,24.064]
[1723597806163,6.8738,145.48,145.44,24.064]
[1723597807485,45.0,145.47,145.44,23.064]
[1723597807661,7.12438,145.49,145.45,6.875]
[1723597807864,0.12549,145.48,145.44,23.064]
[1723597808080,52.37576,145.48,145.44,23.064]
[1723597808291,65.06576,145.48,145.44,23.064]
[1723597808460,6.8742,145.47,145.44,16.1885]
[1723597808788,45.0,145.46,145.44,16.1885]
[1723597808960,65.06576,145.48,145.44,16.1885]
[1723597809364,58.19196,145.48,145.42,6.8764]
[1723597809688,0.12549,145.46,145.42,6.8764]
[1723597809856,45.37647,145.46,145.42,6.8764]
[1723597810193,52.25127,145.46,145.42,6.8764]
[1723597810517,0.12549,145.42,145.35,6.8795]
[1723597810663,0.12549,145.4,145.31,12.69]
[1723597810861,45.37647,145.4,145.36,6.8791]
[1723597811068,45.0,145.4,145.37,6.8787]
[1723597811289,0.98499493,145.39,145.35,17.199]
[1723597811590,0.12549,145.39,145.35,24.0786]
[1723597811803,0.12549,145.39,145.35,24.0787]
[1723597812003,0.12549,145.39,145.36,6.8794]
[1723597812172,45.0,145.4,145.36,6.8794]
[1723597812672,0.25098,145.42,145.38,6.8783]
[1723597813006,52.12788,145.42,145.37,24.0758]
[1723597813706,12.94098,145.41,145.37,17.1969]
[1723597813998,0.12549,145.39,145.36,6.8794]
[1723597814205,0.12549,145.39,145.35,6.8798]
[1723597814505,6.8787,145.38,145.34,24.0806]
[1723597814703,12.81549,145.39,145.35,6.8797]
[1723597815004,45.0,145.38,145.36,6.8794]
[1723597815380,0.25098,145.4,145.36,17.198]
[1723597815579,0.25098,145.4,145.36,24.0771]
[1723597815804,45.25098,145.4,145.36,24.0771]
[1723597816101,0.12549,145.39,145.36,24.0771]
[1723597816306,0.25098,145.39,145.36,24.0771]
[1723597818816,0.12549,145.37,145.34,6.8802]
[1723597819108,45.25098,145.37,145.34,6.8802]
[1723597819692,45.25098,145.37,145.33,40.0975]
[1723597820209,0.25098,145.37,145.33,40.0975]
[1723597820405,45.0,145.36,145.33,40.0975]
[1723597820591,0.25098,145.37,145.33,40.0975]
[1723597820779,45.25098,145.38,145.35,6.8795]
[1723597821105,19.5679,145.4,145.35,24.0787]
[1723597821775,6.8781,145.39,145.35,24.0787]
[1723597822174,0.12549,145.38,145.35,24.0787]
[1723597822409,45.50196,145.39,145.35,24.0787]
[1723597822620,52.38016,145.39,145.35,24.0787]
[1723597823083,45.50196,145.39,145.35,24.0787]
[1723597823485,45.50196,145.39,145.36,6.8792]
[1723597824286,52.38006,145.39,145.35,24.0788]
[1723597825309,45.50196,145.39,145.36,6.8794]
[1723597825610,9.15314381,145.43,145.37,17.1966]
[1723597825907,6.8762,145.43,145.39,6.8777]
[1723597826211,6.8762,145.43,145.39,17.1947]
[1723597826423,6.8762,145.43,145.39,24.0727]
[1723597826609,6.8766,145.42,145.37,6.8785]
[1723597826789,6.8766,145.42,145.38,6.8784]
[1723597827113,6.8761,145.43,145.39,6.8779]
[1723597827306,19.5658,145.44,145.39,6.8779]
[1723597828593,45.50196,145.43,145.39,6.8779]
[1723597828922,52.37816,145.43,145.39,6.8779]
[1723597829078,0.12549,145.41,145.38,17.1959]
[1723597829283,0.12549,145.39,145.36,6.8794]
[1723597829491,45.12549,145.39,145.36,6.8794]
[1723597831389,45.12549,145.39,145.35,24.079]
[1723597831811,45.12549,145.39,145.36,6.879]
[1723597833622,45.12549,145.39,145.37,6.8789]
[1723597833818,0.12549,145.41,145.33,28.7053]
[1723597834318,45.12549,145.41,145.38,6.8782]
[1723597834629,19.5662,145.43,145.38,6.8782]
[1723597835114,19.5662,145.43,145.39,6.878]
[1723597835331,6.8753,145.45,145.39,17.1945]
[1723597835495,6.8757,145.44,145.39,17.1945]
[1723597835696,6.8757,145.44,145.4,6.8772]
[1723597836526,19.5652,145.45,145.41,6.877]
[1723597836826,7.00119,145.44,145.4,6.8775]
[1723597837116,6.8761,145.43,145.39,17.1945]
[1723597837320,0.12549,145.43,145.39,24.0722]
[1723597837522,7.00119,145.44,145.39,17.1945]
[1723597837695,45.0,145.43,145.39,17.1945]
[1723597838503,6.8751,145.46,145.39,32.569]
[1723597838700,19.5651,145.46,145.41,6.877]
[1723597838905,19.5651,145.46,145.42,6.8766]
[1723597839401,19.5651,145.46,145.39,32.569]
[1723597839402,19.5651,145.46,145.41,6.8769]
[1723597839803,45.0,145.45,145.41,6.8769]
[1723597840021,12.69,145.48,145.39,15.3745]
[1723597840331,12.69,145.48,145.39,28.0645]
[1723597840921,19.5638,145.48,145.44,6.8756]
[1723597841223,12.69,145.49,145.43,17.19]
[1723597841721,19.5634,145.49,145.44,6.8756]
[1723597841921,7.73340493,145.48,145.44,6.8756]
[1723597842122,12.69,145.49,145.43,17.19]
[1723597842300,6.8744,145.47,145.42,6.8762]
[1723597842618,6.8744,145.47,145.39,28.0645]
[1723597843019,6.99939,145.48,145.43,6.8757]
[1723597843196,45.0,145.47,145.39,15.3745]
[1723597843529,7.73450493,145.46,145.42,24.0676]
[1723597844415,64.5643,145.47,145.42,24.0676]
[1723597844605,45.0,145.47,145.44,6.8756]
[1723597845820,45.0,145.47,145.43,6.876]
[1723597846030,0.85950493,145.46,145.43,6.876]
[1723597846220,51.8744,145.47,145.43,6.876]
[1723597847529,7.00019,145.46,145.42,17.1911]
[1723597847699,45.0,145.45,145.42,17.1911]
[1723597849019,45.12549,145.46,145.42,17.1911]
[1723597849218,0.25098,145.47,145.42,17.1911]
[1723597849411,45.25098,145.48,145.45,6.8751]
[1723597849613,0.12549,145.47,145.45,6.8751]
[1723597849838,0.12549,145.47,145.44,6.8755]
[1723597850806,45.25098,145.48,145.44,6.8755]
[1723597851015,45.25098,145.48,145.45,6.8752]
[1723597851226,52.12478,145.48,145.42,17.1911]
[1723597852231,6.8738,145.48,145.44,6.8753]
[1723597854128,6.8743,145.47,145.43,6.8761]
[1723597854333,0.85950493,145.46,145.42,17.1911]
[1723597854648,19.81538,145.47,145.42,24.0673]
[1723597854812,51.8749,145.46,145.42,24.0673]
[1723597855014,52.73440493,145.46,145.42,24.0673]
[1723597855838,51.8749,145.46,145.42,24.0673]
[1723597856215,45.0,145.46,145.43,6.876]
[1723597856709,45.0,145.46,145.42,24.0676]
[1723597857256,45.0,145.46,145.43,6.8761]
[1723597857434,45.0,145.46,145.42,24.0676]
[1723597857630,0.12549,145.48,145.42,17.1911]
[1723597857826,45.12549,145.48,145.44,6.8755]
[1723597858245,19.5634,145.49,145.44,6.8755]
[1723597858846,6.8738,145.48,145.44,6.8755]
[1723597859732,6.8738,145.48,145.43,6.876]
[1723597860760,6.8755,145.45,145.4,6.8774]
[1723597861363,6.8749,145.46,145.42,6.8765]
[1723597861525,7.73440493,145.46,145.39,32.5688]
[1723597861721,7.00019,145.46,145.42,6.8766]
[1723597862349,52.73480493,145.45,145.39,32.5688]
[1723597862520,7.73480493,145.45,145.4,6.8774]
[1723597862840,51.8757,145.44,145.4,6.8774]
[1723597863057,6.8757,145.44,145.4,6.8774]
[1723597863343,7.00029,145.46,145.41,6.8767]
[1723597863648,6.8757,145.44,145.4,6.8773]
[1723597864638,7.12628,145.45,145.4,6.8773]
[1723597864830,45.0,145.44,145.4,6.8773]
[1723597865660,51.8758,145.44,145.4,6.8773]
[1723597866358,52.73530493,145.44,145.4,6.8773]
[1723597866564,45.0,145.44,145.41,6.877]
[1723597867053,0.85950493,145.43,145.4,6.8774]
[1723597867356,51.8758,145.44,145.4,6.8774]
[1723597867560,6.8761,145.43,145.39,24.0723]
[1723597868071,7.73560493,145.43,145.39,24.0723]
[1723597868239,45.0,145.44,145.4,6.8774]
[1723597869228,51.876,145.44,145.4,6.8774]
[1723597869433,6.8761,145.43,145.39,24.0722]
[1723597871063,6.8767,145.42,145.37,6.8785]
[1723597871234,6.8767,145.42,145.36,33.2959]
[1723597871655,6.8762,145.43,145.39,6.878]
[1723597874168,6.4162,145.47,145.4,17.1934]
[1723597874343,35.93289669,145.49,145.4,12.69]
[1723597874548,27.9385,145.49,145.4,12.69]
[1723597875459,6.8745,145.47,145.4,12.69]
[1723597875768,6.8743,145.47,145.43,6.876]
[1723597875979,6.8743,145.47,145.43,6.8759]
[1723597877877,6.8743,145.47,145.44,1.37492727]
[1723597878881,6.8743,145.47,145.42,24.0676]
[1723597879258,6.8743,145.47,145.43,1.3749281]
[1723597879871,6.641,145.5,145.43,1.3749281]
[1723597880079,6.8748,145.46,145.42,24.0676]
[1723597880951,6.8734,145.49,145.43,1.37493466]
[1723597881475,6.8738,145.48,145.44,6.8755]
[1723597883178,29.2019,145.52,145.42,12.69]
[1723597883483,6.872,145.52,145.48,6.8736]
[1723597883655,6.4449,145.54,145.48,17.1841]
[1723597883656,6.8724,145.51,145.48,17.1841]
[1723597883857,6.8724,145.51,145.45,1.37457034]
[1723597883858,6.8724,145.51,145.47,6.8741]
[1723597884184,6.8724,145.51,145.43,6.8758]
[1723597884185,12.69,145.51,145.43,6.8758]
[1723597884349,6.8738,145.48,145.42,17.1909]
[1723597884550,6.8738,145.48,145.43,6.8758]
[1723597884792,6.8738,145.48,145.42,17.1909]
[1723597884991,6.8734,145.49,145.44,17.1884]
[1723597885470,6.8729,145.5,145.46,24.0606]
[1723597885957,6.8729,145.5,145.46,17.186]
[1723597886682,0.12549,145.52,145.46,17.186]
[1723597886683,23.6229,145.54,145.46,24.0604]
[1723597886981,32.69,145.53,145.46,17.186]
[1723597887981,6.8733,145.49,145.45,6.875]
[1723597888871,32.69,145.53,145.43,17.1895]
[1723597888872,12.69,145.51,145.43,17.1895]
[1723597889183,6.8739,145.48,145.43,24.0653]
[1723597890618,17.30589,145.52,145.43,24.0653]
[1723597890619,6.8743,145.47,145.43,17.1895]
[1723597893492,6.8743,145.47,145.43,24.0654]
[1723597896302,6.8743,145.47,145.43,17.1895]
[1723597897299,6.8743,145.47,145.43,24.0656]
[1723597898812,6.8738,145.48,145.44,6.8756]
[1723597899180,6.8733,145.5,145.45,8.25000547]
[1723597899477,6.8734,145.49,145.44,6.8755]
[1723597899993,6.8739,145.48,145.44,6.8755]
[1723597900779,6.8739,145.48,145.43,24.0655]